[Event "Live Chess"]
[Site "Chess.com"]
[Date "2024.06.02"]
[Round "-"]
[White "raimundklein"]
[Black "halfberg"]
[Result "0-1"]
[WhiteElo "1549"]
[BlackElo "1899"]
[TimeControl "300"]
[EndTime "3:14:02 PDT"]
[Termination "halfberg won on time"]

1. e4 {[%clk 0:04:58.3]} 1... c5 {[%clk 0:04:58]} 2. Nf3 {[%clk 0:04:56.9]} 2...
Nc6 {[%clk 0:04:56.8]} 3. c3 {[%clk 0:04:55.2]} 3... Nf6 {[%clk 0:04:54.8]} 4.
e5 {[%clk 0:04:02.7]} 4... Nd5 {[%clk 0:04:49.8]} 5. d4 {[%clk 0:04:00.8]} 5...
cxd4 {[%clk 0:04:47.5]} 6. cxd4 {[%clk 0:04:00.7]} 6... d6 {[%clk 0:04:45.4]} 7.
Nc3 {[%clk 0:03:54.1]} 7... Nxc3 {[%clk 0:04:38.8]} 8. bxc3 {[%clk 0:03:54]}
8... dxe5 {[%clk 0:04:38]} 9. dxe5 {[%clk 0:03:50.6]} 9... Qxd1+ {[%clk
0:04:35.4]} 10. Kxd1 {[%clk 0:03:50.5]} 10... Bg4 {[%clk 0:04:32.6]} 11. Bf4
{[%clk 0:03:47.5]} 11... O-O-O+ {[%clk 0:04:28.3]} 12. Kc2 {[%clk 0:03:46.4]}
12... e6 {[%clk 0:04:21.8]} 13. Bd3 {[%clk 0:03:33.6]} 13... Bc5 {[%clk
0:04:18.1]} 14. Rhf1 {[%clk 0:03:31.5]} 14... Rd7 {[%clk 0:04:02]} 15. Be4
{[%clk 0:03:14.4]} 15... Rhd8 {[%clk 0:03:53.3]} 16. Rad1 {[%clk 0:03:09]} 16...
Rxd1 {[%clk 0:03:49.9]} 17. Rxd1 {[%clk 0:03:06.8]} 17... Rxd1 {[%clk
0:03:49.3]} 18. Kxd1 {[%clk 0:03:06.4]} 18... Bxf2 {[%clk 0:03:44.9]} 19. Ke2
{[%clk 0:02:58.4]} 19... Bc5 {[%clk 0:03:37.5]} 20. Bxh7 {[%clk 0:02:56.7]}
20... g6 {[%clk 0:03:27.9]} 21. h3 {[%clk 0:02:55.3]} 21... Bxf3+ {[%clk
0:03:23.5]} 22. Kxf3 {[%clk 0:02:53.3]} 22... Kd7 {[%clk 0:03:19.8]} 23. Ke4
{[%clk 0:02:46.8]} 23... Ke8 {[%clk 0:03:05.6]} 24. g4 {[%clk 0:02:43.6]} 24...
Kf8 {[%clk 0:03:04.3]} 25. Bh6+ {[%clk 0:02:42.5]} 25... Ke8 {[%clk 0:03:02.5]}
26. h4 {[%clk 0:02:39.9]} 26... Bf8 {[%clk 0:02:48.6]} 27. Be3 {[%clk
0:02:35.4]} 27... Bg7 {[%clk 0:02:46.5]} 28. Bf4 {[%clk 0:02:30.5]} 28... Ne7
{[%clk 0:02:40.8]} 29. h5 {[%clk 0:02:19.4]} 29... gxh5 {[%clk 0:02:24]} 30.
gxh5 {[%clk 0:02:17.7]} 30... Nd5 {[%clk 0:02:22.8]} 31. Bd2 {[%clk 0:02:16.1]}
31... f5+ {[%clk 0:02:16.1]} 32. Kd4 {[%clk 0:02:06.6]} 32... Kd7 {[%clk
0:02:11]} 33. h6 {[%clk 0:01:48]} 33... Bh8 {[%clk 0:02:06.8]} 34. c4 {[%clk
0:01:39.3]} 34... Ne7 {[%clk 0:02:03.4]} 35. Bg5 {[%clk 0:01:24.7]} 35... Nc6+
{[%clk 0:02:01]} 36. Ke3 {[%clk 0:01:13.1]} 36... Nxe5 {[%clk 0:01:59.8]} 37. c5
{[%clk 0:01:07.2]} 37... Nf7 {[%clk 0:01:42.3]} 38. Bf4 {[%clk 0:01:04.9]} 38...
e5 {[%clk 0:01:40.8]} 39. Bxf5+ {[%clk 0:01:03.8]} 39... Kc6 {[%clk 0:01:39.5]}
40. Be4+ {[%clk 0:00:51.1]} 40... Kxc5 {[%clk 0:01:38.7]} 41. Bg3 {[%clk
0:00:49.9]} 41... Nxh6 {[%clk 0:01:36.6]} 42. Bxb7 {[%clk 0:00:46.2]} 42... Nf7
{[%clk 0:01:29.4]} 43. Bf2 {[%clk 0:00:41.2]} 43... Nd6 {[%clk 0:01:26.4]} 44.
Bg2 {[%clk 0:00:26.6]} 44... a5 {[%clk 0:01:24.9]} 45. Kd3+ {[%clk 0:00:19.4]}
45... Kb5 {[%clk 0:01:20.2]} 46. Kc2 {[%clk 0:00:18.5]} 46... Bf6 {[%clk
0:01:16.8]} 47. Bf1+ {[%clk 0:00:17.2]} 47... Kc6 {[%clk 0:01:10.2]} 48. Kb3
{[%clk 0:00:16.4]} 48... e4 {[%clk 0:01:08.1]} 49. Be1 {[%clk 0:00:15.2]} 49...
e3 {[%clk 0:00:56.7]} 50. Bxa5 {[%clk 0:00:13.7]} 50... Ne4 {[%clk 0:00:52]} 51.
Kc2 {[%clk 0:00:12.1]} 51... Kc5 {[%clk 0:00:47.9]} 52. Kd3 {[%clk 0:00:10.9]}
52... Nd6 {[%clk 0:00:39.3]} 53. Kxe3 {[%clk 0:00:09.9]} 53... Nc4+ {[%clk
0:00:37.7]} 54. Kd3 {[%clk 0:00:09.2]} 54... Nxa5 {[%clk 0:00:36.2]} 55. Kc2
{[%clk 0:00:08.5]} 55... Kb4 {[%clk 0:00:34.2]} 56. Bg2 {[%clk 0:00:06.2]} 56...
Ka3 {[%clk 0:00:32.1]} 57. Kb1 {[%clk 0:00:05.4]} 57... Nc4 {[%clk 0:00:27.6]}
58. Bd5 {[%clk 0:00:04.1]} 58... Ne3 {[%clk 0:00:26.1]} 59. Bf7 {[%clk
0:00:01.8]} 59... Bc3 {[%clk 0:00:23.6]} 0-1

[Event "Live Chess"]
[Site "Chess.com"]
[Date "2024.06.02"]
[Round "-"]
[White "TigerTank70"]
[Black "Purple1szed"]
[Result "1-0"]
[WhiteElo "2226"]
[BlackElo "2068"]
[TimeControl "300"]
[EndTime "3:14:14 PDT"]
[Termination "TigerTank70 won by resignation"]

1. e4 {[%clk 0:04:58.6]} 1... e5 {[%clk 0:04:58.9]} 2. Nf3 {[%clk 0:04:56.1]}
2... Nc6 {[%clk 0:04:57.8]} 3. Bc4 {[%clk 0:04:52.3]} 3... Nf6 {[%clk
0:04:57.1]} 4. Nc3 {[%clk 0:04:48.9]} 4... Nxe4 {[%clk 0:04:55.6]} 5. Qe2 {[%clk
0:04:48.5]} 5... Nxc3 {[%clk 0:04:54.2]} 6. bxc3 {[%clk 0:04:48.4]} 6... d6
{[%clk 0:04:39.8]} 7. d4 {[%clk 0:04:40.4]} 7... Bg4 {[%clk 0:04:37.2]} 8. dxe5
{[%clk 0:04:09.2]} 8... Bxf3 {[%clk 0:04:31.5]} 9. Qxf3 {[%clk 0:03:46.8]} 9...
Nxe5 {[%clk 0:04:30.6]} 10. Qxb7 {[%clk 0:03:45.8]} 10... Nxc4 {[%clk
0:04:19.2]} 11. Qc6+ {[%clk 0:03:44.4]} 11... Qd7 {[%clk 0:04:18.9]} 12. Qxa8+
{[%clk 0:03:43]} 12... Ke7 {[%clk 0:04:11.8]} 13. O-O {[%clk 0:03:39.4]} 13...
Ne5 {[%clk 0:04:03.7]} 14. f4 {[%clk 0:03:37.7]} 14... Ng6 {[%clk 0:03:57.6]}
15. c4 {[%clk 0:03:29.9]} 15... c6 {[%clk 0:03:31.7]} 16. Bb2 {[%clk 0:03:21.6]}
16... f6 {[%clk 0:03:28.3]} 17. Qb8 {[%clk 0:03:03.5]} 17... Kf7 {[%clk
0:03:25.3]} 18. Qb3 {[%clk 0:03:01.3]} 18... Be7 {[%clk 0:03:22.5]} 19. c5+
{[%clk 0:02:55]} 19... d5 {[%clk 0:03:21.7]} 20. f5 {[%clk 0:02:52.1]} 20... Ne5
{[%clk 0:03:15.5]} 21. Bxe5 {[%clk 0:02:48.5]} 21... fxe5 {[%clk 0:03:15.4]} 22.
Qc3 {[%clk 0:02:39.6]} 22... Bf6 {[%clk 0:03:10.2]} 23. Rab1 {[%clk 0:02:35.7]}
23... e4 {[%clk 0:03:08.6]} 24. Qb4 {[%clk 0:02:30.3]} 24... Re8 {[%clk
0:03:03.3]} 25. Rfe1 {[%clk 0:02:19.7]} 25... Qxf5 {[%clk 0:02:49]} 26. Qb7+
{[%clk 0:02:15.6]} 26... Re7 {[%clk 0:02:48.3]} 27. Qxc6 {[%clk 0:02:14.4]}
27... Bd4+ {[%clk 0:02:46.9]} 28. Kh1 {[%clk 0:02:12.4]} 28... e3 {[%clk
0:02:38.1]} 29. Rf1 {[%clk 0:02:10]} 29... Qf6 {[%clk 0:02:28.2]} 30. Qxd5+
{[%clk 0:02:07.6]} 30... Kf8 {[%clk 0:02:17.9]} 31. Rb8+ {[%clk 0:02:01.1]} 1-0

[Event "Live Chess"]
[Site "Chess.com"]
[Date "2024.06.02"]
[Round "-"]
[White "vincents82"]
[Black "DJ_Lambton"]
[Result "1/2-1/2"]
[WhiteElo "2009"]
[BlackElo "1785"]
[TimeControl "300"]
[EndTime "3:14:41 PDT"]
[Termination "Game drawn - insufficient material"]

1. e4 {[%clk 0:04:57]} 1... c6 {[%clk 0:04:59]} 2. d4 {[%clk 0:04:53.3]} 2... d5
{[%clk 0:04:58.4]} 3. Nc3 {[%clk 0:04:52.8]} 3... dxe4 {[%clk 0:04:57.3]} 4.
Nxe4 {[%clk 0:04:52.2]} 4... Bf5 {[%clk 0:04:56.5]} 5. Ng3 {[%clk 0:04:51.2]}
5... Bg6 {[%clk 0:04:55.8]} 6. h4 {[%clk 0:04:50.9]} 6... h6 {[%clk 0:04:54.8]}
7. Nf3 {[%clk 0:04:47.6]} 7... Nd7 {[%clk 0:04:53.6]} 8. h5 {[%clk 0:04:47]}
8... Bh7 {[%clk 0:04:53.2]} 9. Bd3 {[%clk 0:04:46.6]} 9... Bxd3 {[%clk
0:04:52.9]} 10. Qxd3 {[%clk 0:04:46.3]} 10... e6 {[%clk 0:04:52.6]} 11. Bd2
{[%clk 0:04:45.9]} 11... Ngf6 {[%clk 0:04:51]} 12. O-O-O {[%clk 0:04:45.5]}
12... Be7 {[%clk 0:04:50.4]} 13. Ne4 {[%clk 0:04:44.2]} 13... Nxe4 {[%clk
0:04:49.5]} 14. Qxe4 {[%clk 0:04:43.4]} 14... Nf6 {[%clk 0:04:49.2]} 15. Qe2
{[%clk 0:04:42]} 15... Qd5 {[%clk 0:04:48.8]} 16. c4 {[%clk 0:04:41.3]} 16...
Qe4 {[%clk 0:04:46]} 17. Qxe4 {[%clk 0:04:40.5]} 17... Nxe4 {[%clk 0:04:45.8]}
18. Be3 {[%clk 0:04:39.9]} 18... O-O {[%clk 0:04:44.5]} 19. Ne5 {[%clk
0:04:38.9]} 19... Bf6 {[%clk 0:04:42.5]} 20. f3 {[%clk 0:04:37.3]} 20... Nd6
{[%clk 0:04:39.4]} 21. Nd7 {[%clk 0:04:32.3]} 21... Nxc4 {[%clk 0:04:23]} 22.
Nxf6+ {[%clk 0:04:24.7]} 22... gxf6 {[%clk 0:04:22]} 23. Bxh6 {[%clk 0:04:23.9]}
23... Rfd8 {[%clk 0:04:20.1]} 24. b3 {[%clk 0:04:21.2]} 24... Nb6 {[%clk
0:04:15.9]} 25. Be3 {[%clk 0:04:18.6]} 25... Nd5 {[%clk 0:04:14.9]} 26. Bf2
{[%clk 0:04:18]} 26... Rac8 {[%clk 0:04:13.5]} 27. Kb2 {[%clk 0:04:16.1]} 27...
e5 {[%clk 0:04:03.4]} 28. h6 {[%clk 0:04:10.3]} 28... Kh7 {[%clk 0:04:00.7]} 29.
g4 {[%clk 0:04:01.8]} 29... exd4 {[%clk 0:03:56.7]} 30. Bxd4 {[%clk 0:04:00.1]}
30... c5 {[%clk 0:03:55.8]} 31. Bc3 {[%clk 0:03:54.9]} 31... Nxc3 {[%clk
0:03:50]} 32. Kxc3 {[%clk 0:03:51.3]} 32... Rxd1 {[%clk 0:03:45.9]} 33. Rxd1
{[%clk 0:03:50.1]} 33... Rc7 {[%clk 0:03:44.9]} 34. Rh1 {[%clk 0:03:47.9]} 34...
b6 {[%clk 0:03:42.2]} 35. Kc4 {[%clk 0:03:45.2]} 35... a6 {[%clk 0:03:40.2]} 36.
a4 {[%clk 0:03:44.3]} 36... Rc8 {[%clk 0:03:38.8]} 37. Kd5 {[%clk 0:03:41.5]}
37... Kg6 {[%clk 0:03:37.5]} 38. h7 {[%clk 0:03:38.2]} 38... Rh8 {[%clk
0:03:34.5]} 39. Kc6 {[%clk 0:03:37.1]} 39... f5 {[%clk 0:03:32.8]} 40. gxf5+
{[%clk 0:03:31.2]} 40... Kxf5 {[%clk 0:03:32.2]} 41. Kxb6 {[%clk 0:03:30.4]}
41... Kf4 {[%clk 0:03:31.2]} 42. Kxc5 {[%clk 0:03:27.9]} 42... f5 {[%clk
0:03:30]} 43. Kb6 {[%clk 0:03:24.1]} 43... Kxf3 {[%clk 0:03:29.3]} 44. Kxa6
{[%clk 0:03:23.2]} 44... f4 {[%clk 0:03:28.2]} 45. Kb7 {[%clk 0:03:20.8]} 45...
Kg2 {[%clk 0:03:27.4]} 46. Rh6 {[%clk 0:03:13.6]} 46... f3 {[%clk 0:03:26.6]}
47. Rg6+ {[%clk 0:03:08.2]} 47... Kf1 {[%clk 0:03:24.9]} 48. Rf6 {[%clk
0:03:04.1]} 48... Rxh7+ {[%clk 0:03:23.9]} 49. Kb6 {[%clk 0:03:02.7]} 49... f2
{[%clk 0:03:23.7]} 50. Rxf2+ {[%clk 0:02:53.8]} 50... Kxf2 {[%clk 0:03:22.4]}
51. b4 {[%clk 0:02:53.3]} 51... Ke3 {[%clk 0:03:18.2]} 52. a5 {[%clk 0:02:50.6]}
52... Kd4 {[%clk 0:03:15.8]} 53. a6 {[%clk 0:02:50]} 53... Kc4 {[%clk
0:03:14.7]} 54. a7 {[%clk 0:02:46.8]} 54... Rh8 {[%clk 0:03:07.5]} 55. Kb7
{[%clk 0:02:44.9]} 55... Kxb4 {[%clk 0:03:04.3]} 56. a8=Q {[%clk 0:02:43.3]}
56... Rxa8 {[%clk 0:03:03.3]} 57. Kxa8 {[%clk 0:02:42.6]} 1/2-1/2

[Event "Live Chess"]
[Site "Chess.com"]
[Date "2024.06.02"]
[Round "-"]
[White "Dhaydon19"]
[Black "NottheBishopSacrifice"]
[Result "1-0"]
[WhiteElo "2628"]
[BlackElo "2309"]
[TimeControl "300"]
[EndTime "3:14:50 PDT"]
[Termination "Dhaydon19 won by resignation"]

1. d4 {[%clk 0:04:58.2]} 1... d5 {[%clk 0:04:57.8]} 2. Nf3 {[%clk 0:04:57.9]}
2... Nf6 {[%clk 0:04:56.3]} 3. c4 {[%clk 0:04:57.6]} 3... e6 {[%clk 0:04:55.2]}
4. cxd5 {[%clk 0:04:57.3]} 4... exd5 {[%clk 0:04:54.2]} 5. Nc3 {[%clk 0:04:57]}
5... c6 {[%clk 0:04:52.2]} 6. Bf4 {[%clk 0:04:56.6]} 6... Bd6 {[%clk 0:04:51]}
7. Bxd6 {[%clk 0:04:55.1]} 7... Qxd6 {[%clk 0:04:50.9]} 8. Qc2 {[%clk
0:04:54.4]} 8... O-O {[%clk 0:04:49.1]} 9. e3 {[%clk 0:04:53.8]} 9... Re8 {[%clk
0:04:46.3]} 10. Bd3 {[%clk 0:04:53.2]} 10... Nbd7 {[%clk 0:04:44.5]} 11. O-O
{[%clk 0:04:50.3]} 11... Nf8 {[%clk 0:04:43.3]} 12. Ne5 {[%clk 0:04:48.3]} 12...
Ng4 {[%clk 0:04:36.6]} 13. Nxg4 {[%clk 0:04:41.2]} 13... Bxg4 {[%clk 0:04:35.2]}
14. Rab1 {[%clk 0:04:39.1]} 14... Bh5 {[%clk 0:04:26.4]} 15. b4 {[%clk 0:04:37]}
15... Bg6 {[%clk 0:04:25.9]} 16. a4 {[%clk 0:04:30]} 16... Rad8 {[%clk 0:04:22]}
17. Rfc1 {[%clk 0:04:25.7]} 17... Rc8 {[%clk 0:04:19.3]} 18. Bxg6 {[%clk
0:04:22.6]} 18... hxg6 {[%clk 0:04:09.4]} 19. Qd3 {[%clk 0:04:18.4]} 19... Red8
{[%clk 0:04:02.9]} 20. Ne2 {[%clk 0:04:15.5]} 20... Ne6 {[%clk 0:03:59.2]} 21.
h4 {[%clk 0:04:06.8]} 21... Qe7 {[%clk 0:03:56.7]} 22. g3 {[%clk 0:04:05.5]}
22... a6 {[%clk 0:03:47.8]} 23. Kg2 {[%clk 0:04:03.3]} 23... Qd6 {[%clk
0:03:28.7]} 24. Rh1 {[%clk 0:03:59.1]} 24... Qe7 {[%clk 0:03:22.1]} 25. h5
{[%clk 0:03:57.7]} 25... Qf6 {[%clk 0:03:21.7]} 26. hxg6 {[%clk 0:03:56.2]}
26... Qxg6 {[%clk 0:03:20.2]} 27. Qxg6 {[%clk 0:03:54.9]} 27... fxg6 {[%clk
0:03:19.4]} 28. Rhc1 {[%clk 0:03:53]} 28... Kf7 {[%clk 0:03:15.9]} 29. Nc3
{[%clk 0:03:51.7]} 29... g5 {[%clk 0:03:00.9]} 30. b5 {[%clk 0:03:48.1]} 30...
axb5 {[%clk 0:02:59.9]} 31. axb5 {[%clk 0:03:46]} 31... c5 {[%clk 0:02:59.5]}
32. dxc5 {[%clk 0:03:42.3]} 32... Rxc5 {[%clk 0:02:57.2]} 33. Na4 {[%clk
0:03:40]} 33... Rxc1 {[%clk 0:02:52.6]} 34. Rxc1 {[%clk 0:03:39]} 34... d4
{[%clk 0:02:51.8]} 35. exd4 {[%clk 0:03:37.5]} 35... Rxd4 {[%clk 0:02:50.4]} 36.
Nc5 {[%clk 0:03:34.5]} 36... Nc7 {[%clk 0:02:28.7]} 37. b6 {[%clk 0:03:24.8]}
37... Na8 {[%clk 0:02:12.7]} 38. Nxb7 {[%clk 0:03:19.5]} 38... Nxb6 {[%clk
0:02:10]} 39. Rc6 {[%clk 0:03:18]} 39... Nc4 {[%clk 0:01:59.5]} 40. Rxc4 {[%clk
0:03:14.3]} 40... Rd5 {[%clk 0:01:46.8]} 41. Nc5 {[%clk 0:03:09.6]} 1-0

[Event "Live Chess"]
[Site "Chess.com"]
[Date "2024.06.02"]
[Round "-"]
[White "elis06"]
[Black "KeithArkell"]
[Result "1-0"]
[WhiteElo "2331"]
[BlackElo "2406"]
[TimeControl "300"]
[EndTime "3:14:53 PDT"]
[Termination "elis06 won by resignation"]

1. d4 {[%clk 0:04:57.6]} 1... e6 {[%clk 0:04:58.8]} 2. Nf3 {[%clk 0:04:55.9]}
2... Nf6 {[%clk 0:04:57.8]} 3. e3 {[%clk 0:04:51]} 3... c5 {[%clk 0:04:56.8]} 4.
Bd3 {[%clk 0:04:48.5]} 4... cxd4 {[%clk 0:04:54.2]} 5. exd4 {[%clk 0:04:47.6]}
5... Be7 {[%clk 0:04:53.8]} 6. O-O {[%clk 0:04:45.7]} 6... O-O {[%clk
0:04:52.8]} 7. c3 {[%clk 0:04:44.3]} 7... b6 {[%clk 0:04:52.3]} 8. Bg5 {[%clk
0:04:42.4]} 8... Ba6 {[%clk 0:04:51]} 9. Bxa6 {[%clk 0:04:39.2]} 9... Nxa6
{[%clk 0:04:50.2]} 10. Qd3 {[%clk 0:04:37.1]} 10... Nc7 {[%clk 0:04:48.5]} 11.
Nbd2 {[%clk 0:04:36.5]} 11... b5 {[%clk 0:04:47.8]} 12. Rfe1 {[%clk 0:04:34.3]}
12... d6 {[%clk 0:04:46.8]} 13. Rad1 {[%clk 0:04:32]} 13... Qd7 {[%clk
0:04:45.4]} 14. Ne4 {[%clk 0:04:26.5]} 14... Nxe4 {[%clk 0:04:44.1]} 15. Qxe4
{[%clk 0:04:25.7]} 15... h6 {[%clk 0:04:39.5]} 16. Bxe7 {[%clk 0:04:21.2]} 16...
Qxe7 {[%clk 0:04:39.4]} 17. d5 {[%clk 0:04:20.4]} 17... e5 {[%clk 0:04:38.3]}
18. Nd4 {[%clk 0:04:16.7]} 18... Qg5 {[%clk 0:04:29.9]} 19. Nf5 {[%clk
0:04:11.2]} 19... Rfd8 {[%clk 0:04:24.6]} 20. Rd3 {[%clk 0:03:58]} 20... g6
{[%clk 0:04:20.9]} 21. Rg3 {[%clk 0:03:53.7]} 21... Qd2 {[%clk 0:04:19.9]} 22.
Rf1 {[%clk 0:03:36.7]} 22... Kf8 {[%clk 0:04:00]} 23. Ne3 {[%clk 0:03:11.6]}
23... Qxb2 {[%clk 0:03:52.6]} 24. Qh4 {[%clk 0:03:06.1]} 24... h5 {[%clk
0:03:48.6]} 25. Qf6 {[%clk 0:03:00.3]} 25... Ne8 {[%clk 0:03:42.1]} 26. Qh8+
{[%clk 0:02:47]} 26... Ke7 {[%clk 0:03:40.8]} 27. Rf3 {[%clk 0:02:32.7]} 27...
Rd7 {[%clk 0:03:25.9]} 28. Qh7 {[%clk 0:02:21.5]} 28... Kd8 {[%clk 0:03:09.7]}
29. Rxf7 {[%clk 0:02:18]} 29... Rxf7 {[%clk 0:03:07.6]} 30. Qxf7 {[%clk
0:02:17.4]} 30... Qxc3 {[%clk 0:03:04.8]} 31. Qxg6 {[%clk 0:02:16.5]} 31... Rc8
{[%clk 0:02:44]} 32. Qxh5 {[%clk 0:02:13.4]} 32... Rc7 {[%clk 0:02:43.4]} 33.
Qg5+ {[%clk 0:02:09.9]} 33... Kc8 {[%clk 0:02:37.6]} 34. Qg8 {[%clk 0:02:06.7]}
34... Kd8 {[%clk 0:02:32.9]} 35. Nf5 {[%clk 0:02:03.3]} 35... Qb4 {[%clk
0:02:26.8]} 36. h4 {[%clk 0:01:55.3]} 36... Rd7 {[%clk 0:02:12.8]} 37. h5 {[%clk
0:01:46.3]} 37... Qf4 {[%clk 0:02:12.1]} 38. g4 {[%clk 0:01:15.3]} 38... e4
{[%clk 0:01:42.9]} 39. h6 {[%clk 0:01:04.9]} 39... Kc7 {[%clk 0:01:26.1]} 40. h7
{[%clk 0:01:02.4]} 40... Nf6 {[%clk 0:01:20.3]} 41. h8=Q {[%clk 0:00:55.3]}
41... Nxg8 {[%clk 0:01:19.1]} 42. Qxg8 {[%clk 0:00:55.2]} 42... a5 {[%clk
0:01:08.5]} 43. Qh8 {[%clk 0:00:54.2]} 43... Qxg4+ {[%clk 0:01:06.8]} 44. Ng3
{[%clk 0:00:53.4]} 44... Qg5 {[%clk 0:00:47.8]} 45. Qc3+ {[%clk 0:00:52.1]}
45... Kd8 {[%clk 0:00:46.4]} 46. Rc1 {[%clk 0:00:48.9]} 46... Ke7 {[%clk
0:00:42.2]} 47. Re1 {[%clk 0:00:46.9]} 47... b4 {[%clk 0:00:37.8]} 48. Rxe4+
{[%clk 0:00:45.7]} 48... Kf7 {[%clk 0:00:36.2]} 49. Qf3+ {[%clk 0:00:44.5]}
49... Kg7 {[%clk 0:00:26.7]} 50. Rg4 {[%clk 0:00:43.4]} 1-0

[Event "Live Chess"]
[Site "Chess.com"]
[Date "2024.06.02"]
[Round "-"]
[White "Thebigsqueeze"]
[Black "Pandreq"]
[Result "1-0"]
[WhiteElo "2269"]
[BlackElo "1220"]
[TimeControl "300"]
[EndTime "3:15:13 PDT"]
[Termination "Thebigsqueeze won by checkmate"]

1. d4 {[%clk 0:04:55.7]} 1... d5 {[%clk 0:04:56.5]} 2. Nf3 {[%clk 0:04:53.8]}
2... e6 {[%clk 0:04:54.4]} 3. g3 {[%clk 0:04:52.8]} 3... Nf6 {[%clk 0:04:50.4]}
4. Bg2 {[%clk 0:04:52.2]} 4... b6 {[%clk 0:04:43]} 5. O-O {[%clk 0:04:50.9]}
5... Bb7 {[%clk 0:04:42.3]} 6. c4 {[%clk 0:04:48.4]} 6... c6 {[%clk 0:04:35.2]}
7. Qc2 {[%clk 0:04:44.5]} 7... Nbd7 {[%clk 0:04:32.5]} 8. Bf4 {[%clk 0:04:43.2]}
8... Rc8 {[%clk 0:04:30.7]} 9. Nbd2 {[%clk 0:04:42.4]} 9... Be7 {[%clk
0:04:18.7]} 10. e4 {[%clk 0:04:41.8]} 10... dxc4 {[%clk 0:04:08.7]} 11. Nxc4
{[%clk 0:04:36.7]} 11... O-O {[%clk 0:04:01.6]} 12. Nd6 {[%clk 0:04:34.5]} 12...
Bxd6 {[%clk 0:03:57.3]} 13. Bxd6 {[%clk 0:04:32.8]} 13... Re8 {[%clk 0:03:54.9]}
14. e5 {[%clk 0:04:23.3]} 14... Nd5 {[%clk 0:03:53.5]} 15. Nd2 {[%clk
0:04:19.2]} 15... Ba6 {[%clk 0:03:44.8]} 16. Rfe1 {[%clk 0:04:12.1]} 16... c5
{[%clk 0:03:26.3]} 17. Qa4 {[%clk 0:04:08.9]} 17... Nb4 {[%clk 0:03:07.8]} 18.
a3 {[%clk 0:04:01.2]} 18... b5 {[%clk 0:03:06.7]} 19. Qb3 {[%clk 0:03:47.3]}
19... Nd5 {[%clk 0:02:54.4]} 20. Bxd5 {[%clk 0:02:53.7]} 20... exd5 {[%clk
0:02:38]} 21. dxc5 {[%clk 0:02:40.9]} 21... Nxc5 {[%clk 0:02:32.1]} 22. Qxd5
{[%clk 0:02:39.4]} 22... Bb7 {[%clk 0:02:17.4]} 23. Qd4 {[%clk 0:02:37.8]} 23...
Qb6 {[%clk 0:01:55.7]} 24. Bxc5 {[%clk 0:02:18.5]} 24... Rxc5 {[%clk 0:01:51.2]}
25. b4 {[%clk 0:02:08.4]} 25... Qc6 {[%clk 0:01:40.6]} 26. f3 {[%clk 0:01:25.8]}
26... Rd5 {[%clk 0:01:30.2]} 27. Qf4 {[%clk 0:01:21.7]} 27... Red8 {[%clk
0:01:08.5]} 28. Ne4 {[%clk 0:01:13.3]} 28... Re8 {[%clk 0:00:48.1]} 29. Nd6
{[%clk 0:01:05.1]} 29... Qb6+ {[%clk 0:00:25.3]} 30. Kh1 {[%clk 0:00:59.4]}
30... Rdxe5 {[%clk 0:00:19.2]} 31. Qxf7+ {[%clk 0:00:53.5]} 31... Kh8 {[%clk
0:00:13.9]} 32. Qxe8+ {[%clk 0:00:52.3]} 32... Rxe8 {[%clk 0:00:04.3]} 33. Rxe8#
{[%clk 0:00:51.6]} 1-0

[Event "Live Chess"]
[Site "Chess.com"]
[Date "2024.06.02"]
[Round "-"]
[White "SavagePawn7"]
[Black "MellowAesthetic"]
[Result "0-1"]
[WhiteElo "653"]
[BlackElo "2079"]
[TimeControl "300"]
[EndTime "3:15:17 PDT"]
[Termination "MellowAesthetic won by resignation"]

1. e4 {[%clk 0:04:51.8]} 1... c5 {[%clk 0:04:58.8]} 2. d4 {[%clk 0:04:50.2]}
2... cxd4 {[%clk 0:04:57.7]} 3. c3 {[%clk 0:04:49.1]} 3... dxc3 {[%clk
0:04:57.6]} 4. Nxc3 {[%clk 0:04:47.8]} 4... Nc6 {[%clk 0:04:57.3]} 5. Nf3 {[%clk
0:04:46.3]} 5... d6 {[%clk 0:04:56.6]} 6. Bc4 {[%clk 0:04:42.5]} 6... a6 {[%clk
0:04:55.6]} 7. O-O {[%clk 0:03:21.4]} 7... Nf6 {[%clk 0:04:53.9]} 8. e5 {[%clk
0:03:14.5]} 8... dxe5 {[%clk 0:04:51.7]} 9. Nxe5 {[%clk 0:02:51.9]} 9... Nxe5
{[%clk 0:04:46.4]} 10. f4 {[%clk 0:02:43.1]} 10... Qxd1 {[%clk 0:04:41.3]} 11.
Rxd1 {[%clk 0:02:40.3]} 11... Nxc4 {[%clk 0:04:40.5]} 0-1

[Event "Live Chess"]
[Site "Chess.com"]
[Date "2024.06.02"]
[Round "-"]
[White "missedJariChance"]
[Black "RockTroll"]
[Result "0-1"]
[WhiteElo "1356"]
[BlackElo "2181"]
[TimeControl "300"]
[EndTime "3:15:19 PDT"]
[Termination "RockTroll won on time"]

1. b3 {[%clk 0:04:56.8]} 1... d5 {[%clk 0:04:59.9]} 2. Bb2 {[%clk 0:04:55.5]}
2... Nf6 {[%clk 0:04:59.5]} 3. Nf3 {[%clk 0:04:51.4]} 3... g6 {[%clk 0:03:54.3]}
4. e3 {[%clk 0:04:47.1]} 4... Bg7 {[%clk 0:03:53.6]} 5. c4 {[%clk 0:04:44.5]}
5... c6 {[%clk 0:03:47.5]} 6. d4 {[%clk 0:04:34.4]} 6... O-O {[%clk 0:03:43.4]}
7. Be2 {[%clk 0:04:29.7]} 7... Bg4 {[%clk 0:02:48.4]} 8. O-O {[%clk 0:04:24.6]}
8... Nbd7 {[%clk 0:02:47]} 9. Nbd2 {[%clk 0:04:21.5]} 9... Re8 {[%clk
0:02:45.2]} 10. cxd5 {[%clk 0:04:14.8]} 10... cxd5 {[%clk 0:02:43.9]} 11. h3
{[%clk 0:04:08.8]} 11... Bxf3 {[%clk 0:02:41.7]} 12. Bxf3 {[%clk 0:04:06.2]}
12... e6 {[%clk 0:02:40]} 13. Rc1 {[%clk 0:04:01.1]} 13... Rc8 {[%clk
0:02:39.6]} 14. Ba3 {[%clk 0:03:36.9]} 14... Qb6 {[%clk 0:02:32.4]} 15. Qe2
{[%clk 0:03:28]} 15... Bf8 {[%clk 0:02:31.7]} 16. Bxf8 {[%clk 0:03:00.7]} 16...
Kxf8 {[%clk 0:02:31.6]} 17. Nb1 {[%clk 0:02:47.9]} 17... Nb8 {[%clk 0:02:05.7]}
18. Na3 {[%clk 0:02:37.9]} 18... a6 {[%clk 0:02:02.8]} 19. Qd2 {[%clk
0:02:15.2]} 19... Nc6 {[%clk 0:02:00.9]} 20. Nc2 {[%clk 0:02:11.5]} 20... Rc7
{[%clk 0:01:57.9]} 21. Be2 {[%clk 0:02:08]} 21... Rec8 {[%clk 0:01:56.1]} 22.
Bd3 {[%clk 0:01:47.5]} 22... Ne8 {[%clk 0:01:36.8]} 23. e4 {[%clk 0:01:37.6]}
23... dxe4 {[%clk 0:01:33.4]} 24. Bxe4 {[%clk 0:01:34.3]} 24... Nxd4 {[%clk
0:01:31.2]} 25. Nxd4 {[%clk 0:01:18.5]} 25... Rxc1 {[%clk 0:01:29.9]} 26. Rxc1
{[%clk 0:01:15.9]} 26... Rxc1+ {[%clk 0:01:28.2]} 27. Qxc1 {[%clk 0:01:14.4]}
27... Qxd4 {[%clk 0:01:27.4]} 28. Bxb7 {[%clk 0:01:02.7]} 28... a5 {[%clk
0:01:22.4]} 29. Qa3+ {[%clk 0:00:52.8]} 29... Qb4 {[%clk 0:01:20.2]} 30. Qxb4+
{[%clk 0:00:46.7]} 30... axb4 {[%clk 0:01:20.1]} 31. Kf1 {[%clk 0:00:43.3]}
31... Ke7 {[%clk 0:01:18.2]} 32. Ke2 {[%clk 0:00:42.1]} 32... Kd6 {[%clk
0:01:17.6]} 33. Kd3 {[%clk 0:00:40.8]} 33... Kc5 {[%clk 0:01:16.8]} 34. Ba6
{[%clk 0:00:30.5]} 34... Nd6 {[%clk 0:01:14.6]} 35. Bc4 {[%clk 0:00:18.2]} 35...
e5 {[%clk 0:01:12.6]} 36. g3 {[%clk 0:00:11.9]} 36... f5 {[%clk 0:01:12.1]} 37.
Bg8 {[%clk 0:00:09.1]} 37... e4+ {[%clk 0:01:09.8]} 38. Kd2 {[%clk 0:00:07.3]}
38... h6 {[%clk 0:01:02.5]} 39. Bh7 {[%clk 0:00:06.2]} 39... g5 {[%clk
0:01:01.9]} 40. Bg6 {[%clk 0:00:04.7]} 40... Kd4 {[%clk 0:01:00.5]} 41. h4
{[%clk 0:00:02.7]} 41... f4 {[%clk 0:00:53.6]} 42. hxg5 {[%clk 0:00:00.5]} 42...
hxg5 {[%clk 0:00:53.5]} 0-1